fUSD/lending_fUSD_20240611
["ID","MTS","AMOUNT","RATE_DAILY","PERIOD"]
[329137014,1718130649757,-367.51936553,0.00021917,2]
[329137015,1718130649768,-324.280848,0.00021917,2]
[329137016,1718130649783,-570.33,0.00021917,2]
[329137017,1718130649794,-511.42004816,0.00021917,2]
[329137018,1718130649804,-500.0,0.00021917,2]
[329137019,1718130649815,-324.280848,0.00021917,2]
[329137020,1718130649825,-500.0,0.00021917,2]
[329137021,1718130649835,-500.0,0.00021917,2]
[329137022,1718130649847,-535.32749604,0.00021917,2]
[329137023,1718130649857,-500.0,0.00021917,2]
[329137024,1718130649868,-644.31,0.00021917,2]
[329137025,1718130649879,-500.0,0.00021917,2]
[329137026,1718130649892,-500.0,0.00021917,2]
[329137027,1718130649903,-500.0,0.00021917,2]
[329137028,1718130649913,-500.0,0.00021917,2]
[329137029,1718130649923,-500.0,0.00021917,2]
[329137030,1718130649933,-151.0,0.00021917,2]
[329137031,1718130649943,-1344.9,0.00021917,2]
[329137032,1718130649954,-151.0,0.00021917,2]
[329137033,1718130649964,-500.0,0.00021917,2]
[329137034,1718130649974,-500.0,0.00021917,2]
[329137035,1718130649985,-500.0,0.00021917,2]
[329137036,1718130649996,-151.0,0.00021917,2]
[329137037,1718130650006,-500.0,0.00021917,2]
[329137038,1718130650017,-638.18,0.00021917,2]
[329137039,1718130650027,-151.0,0.00021917,2]
[329137040,1718130650038,-500.0,0.00021917,2]
[329137041,1718130650049,-500.0,0.00021917,2]
[329137042,1718130650060,-748.21,0.00021917,2]
[329137043,1718130650070,-463.88519235,0.00021917,2]
[329137044,1718130650081,-500.0,0.00021917,2]
[329137045,1718130650091,-500.0,0.00021917,2]
[329137046,1718130650101,-500.0,0.00021917,2]
[329137047,1718130650113,-500.0,0.00021917,2]
[329137048,1718130650123,-500.0,0.00021917,2]
[329137049,1718130650133,-1077.67,0.00021917,2]
[329137050,1718130650142,-500.0,0.00021917,2]
[329137051,1718130650153,-500.0,0.00021917,2]
[329137052,1718130650162,-500.0,0.00021917,2]
[329137053,1718130650173,-500.0,0.00021917,2]
[329137054,1718130650182,-631.74,0.00021917,2]
[329137055,1718130650192,-500.0,0.00021917,2]
[329137056,1718130650202,-508.92404301,0.00021917,2]
[329137057,1718130650212,-500.0,0.00021917,2]
[329137058,1718130650221,-1374.36,0.00021917,2]
[329137059,1718130650233,-500.0,0.00021917,2]
[329137060,1718130650242,-319.21869439,0.00021917,2]
[329137061,1718130650252,-527.48875321,0.00021917,2]
[329137062,1718130650262,-500.0,0.00021917,2]
[329137063,1718130650271,-1145.44,0.00021917,2]
[329137064,1718130650281,-500.0,0.00021917,2]
[329137065,1718130650291,-966.21,0.00021917,2]
[329137066,1718130650300,-500.0,0.00021917,2]
[329137067,1718130650310,-564.96,0.00021917,2]
[329137068,1718130650320,-500.0,0.00021917,2]
[329137069,1718130650329,-1465.1,0.00021917,2]
[329137070,1718130650339,-500.0,0.00021917,2]
[329137071,1718130650348,-500.0,0.00021917,2]
[329137072,1718130650359,-826.67,0.00021917,2]
[329137073,1718130650368,-500.0,0.00021917,2]
[329137074,1718130650378,-500.0,0.00021917,2]
[329137075,1718130650387,-1012.74,0.00021917,2]
[329137076,1718130650397,-500.0,0.00021917,2]
[329137077,1718130650407,-500.0,0.00021917,2]
[329137078,1718130650417,-500.0,0.00021917,2]
[329137079,1718130650426,-668.85,0.00021917,2]
[329137080,1718130650437,-555.1106299,0.00021917,2]
[329137081,1718130650447,-151.0,0.00021917,2]
[329137082,1718130650458,-586.28,0.00021917,2]
[329137083,1718130650478,-500.0,0.00021917,2]
[329137084,1718130650489,-324.44001809,0.00021917,2]
[329137085,1718130650498,-287.17345994,0.00021917,2]
[329137086,1718130650508,-151.0,0.00021917,2]
[329137087,1718130650518,-500.0,0.00021917,2]
[329137088,1718130650528,-991.08,0.00021917,2]
[329137089,1718130650538,-500.0,0.00021917,2]
[329137090,1718130650548,-500.0,0.00021917,2]
[329137091,1718130650558,-580.67219173,0.00021917,2]
[329137092,1718130650572,-717.35,0.00021917,2]
[329137093,1718130650581,-500.0,0.00021917,2]
[329137094,1718130650592,-500.0,0.00021917,2]
[329137095,1718130650602,-151.0,0.00021917,2]
[329137096,1718130650613,-500.0,0.00021917,2]
[329137097,1718130650623,-500.0,0.00021917,2]
[329137098,1718130650633,-500.0,0.00021917,2]
[329137099,1718130650647,-500.0,0.00021917,2]
[329137100,1718130650658,-531.79,0.00021917,2]
[329137101,1718130650669,-500.0,0.00021917,2]
[329137102,1718130650679,-500.0,0.00021917,2]
[329137103,1718130650688,-500.0,0.00021917,2]
[329137104,1718130650698,-507.44387402,0.00021917,2]
[329137105,1718130650709,-500.0,0.00021917,2]
[329137106,1718130650718,-500.0,0.00021917,2]
[329137107,1718130650728,-605.29,0.00021917,2]
[329137108,1718130650738,-1266.94,0.00021917,2]
[329137109,1718130650749,-1203.05,0.00021917,2]
[329137110,1718130650760,-500.0,0.00021917,2]
[329137111,1718130650770,-376.56244272,0.00021917,2]
[329137112,1718130650779,-581.61,0.00021917,2]
[329137114,1718130651019,-500.0,0.00021917,2]
[329137115,1718130651030,-500.0,0.00021917,2]
[329137116,1718130651040,-500.0,0.00021917,2]
[329137117,1718130651051,-512.9949725,0.00021917,2]
[329137118,1718130651062,-500.0,0.00021917,2]
[329137119,1718130651071,-745.77,0.00021917,2]
[329137120,1718130651082,-326.87338769,0.00021917,2]
[329137121,1718130651092,-500.0,0.00021917,2]
[329137122,1718130651103,-500.0,0.00021917,2]
[329137123,1718130651112,-504.34468973,0.00021917,2]
[329137124,1718130651123,-639.98,0.00021917,2]
[329137125,1718130651134,-363.01433808,0.00021917,2]
[329137126,1718130651208,-136.98566192,0.00021917,2]
[329137127,1718130651218,-507.00885591,0.00021917,2]
[329137128,1718130651229,-500.0,0.00021917,2]
[329137129,1718130651239,-500.0,0.00021917,2]
[329137130,1718130651250,-568.07,0.00021917,2]
[329137131,1718130651261,-500.0,0.00021917,2]
[329137132,1718130651271,-14.15407336,0.00021917,2]
[329137133,1718130651323,-433.44615892,0.00021917,2]
[329137134,1718130651334,-1049.86822412,0.00021917,2]
[329137135,1718130651347,-589.60177588,0.00021917,2]
[329137136,1718130651357,-278.87322412,0.00021917,2]
[329137137,1718130653934,17258.61981443,0.00012,2]
[329137139,1718130696998,207.64831763,0.00012,2]
[329137140,1718130703212,750.0,0.00011988,2]
[329137141,1718130759671,12613.8661,0.000118,2]
[329137142,1718130796334,589.033,0.000119,2]
[329137143,1718130823754,770040.83276794,0.00014,2]
[329137146,1718131174167,300.0,0.00027736,120]
[329137150,1718131628204,-263.89187326,9.166e-05,2]
[329137151,1718131628228,-161.63825425,9.167e-05,2]
[329137152,1718131628252,-3664.0863551,9.168e-05,2]
[329137153,1718131670598,164.66,8.877e-05,2]
[329137154,1718131751190,-2000.25333624,9.156e-05,2]
[329137155,1718131751214,-1253.59956446,9.156e-05,2]
[329137156,1718131751239,-316.92510636,9.156e-05,2]
[329137157,1718131751262,-155.0,9.157e-05,2]
[329137158,1718131751285,-1219.43718831,9.157e-05,2]
[329137159,1718131751308,-300.0,9.157e-05,2]
[329137160,1718131751332,-665.84215115,9.157e-05,2]
[329137161,1718131751355,-786.5384728,9.158e-05,2]
[329137162,1718131751379,-453.49654734,9.158e-05,2]
[329137163,1718131751403,-5584.2730595,9.158e-05,2]
[329137164,1718131751430,-19109.23781747,9.158e-05,2]
[329137165,1718131751453,-1249.56334718,9.158e-05,2]
[329137166,1718131751478,-2339.26684083,9.159e-05,2]
[329137167,1718131751501,-9222.56534114,9.159e-05,2]
[329137168,1718131751526,-424.40050855,9.159e-05,2]
[329137169,1718131751551,-155.0,9.159e-05,2]
[329137170,1718131751576,-328.09103155,9.159e-05,2]
[329137171,1718131751636,-163.3366024,9.159e-05,2]
[329137172,1718131751662,-2318.63190928,9.16e-05,2]
[329137173,1718131751688,-217.4798775,9.16e-05,2]
[329137174,1718131751713,-2369.42831983,9.16e-05,2]
[329137175,1718131751737,-364.20577069,9.161e-05,2]
[329137176,1718131751760,-14536.816359,9.161e-05,2]
[329137177,1718131751785,-150.0,9.164e-05,2]
[329137178,1718131751808,-234.47326381,9.168e-05,2]
[329137179,1718131751832,-150.0,9.178e-05,2]
[329137180,1718131751857,-174.25,9.213e-05,2]
[329137181,1718131751882,-731.53,9.61e-05,2]
[329137182,1718131751922,-2052.97,9.67e-05,2]
[329137183,1718131751952,-25752.96,9.67e-05,2]
[329137184,1718131751978,-2666.08,9.67e-05,2]
[329137185,1718131752001,-499.99,9.67e-05,2]
[329137186,1718131752026,-209.73814851,0.0001,2]
[329137187,1718131752050,-254.0,0.00010073,2]
[329137188,1718131752075,-210.0,0.0001008,2]
[329137189,1718131752099,-2416.04896024,0.000101,2]
[329137190,1718131752124,-150.99,0.000101,2]
[329137191,1718131752147,-150.99,0.000101,2]
[329137192,1718131752171,-200.0,0.0001102,2]
[329137193,1718131752197,-293.0,0.00011088,2]
[329137194,1718131752221,-250.0,0.00011115,2]
[329137195,1718131752280,-250.0,0.00011127,2]
[329137196,1718131752305,-2032.4743185,0.00011192,2]
[329137197,1718131757148,-241.67696198,9.155e-05,2]
[329137198,1718131757176,-316.92510636,9.156e-05,2]
[329137199,1718131757201,-665.84215115,9.158e-05,2]
[329137200,1718131757229,-2578.82718866,0.00011192,2]
[329137201,1718131764120,-600.0,9.158e-05,2]
[329137253,1718131832073,-539.05462587,9.157e-05,2]
[329137254,1718131832154,-1432.68764726,9.157e-05,2]
[329137255,1718131832247,-693.67248087,9.157e-05,2]
[329137262,1718131837870,-260.41052989,9.157e-05,2]
[329137264,1718131838657,-925.74573,9.157e-05,2]
[329137265,1718131838669,-4639.0177997,0.00010491,2]
[329137266,1718131838680,-156.34454142,0.00010499,2]
[329137267,1718131838690,-527.52849284,0.00011192,2]
[329137268,1718131838702,-150.0,0.00011192,2]
[329137269,1718131838712,-282.84,0.00011203,2]
[329137270,1718131838723,-166.23,0.00011226,2]
[329137271,1718131838734,-2.27430557,0.00011248,2]
[329137272,1718131838747,-1350.03569443,0.00011248,2]
[329137273,1718131838758,-72.3831535,0.00011249,2]
[329137274,1718131838772,-127.6168465,0.00011249,2]
[329137275,1718131838783,-476.3831535,0.0001131,2]
[329137276,1718131838796,-1884.9968465,0.0001131,2]
[329137277,1718131838808,-1785.58455717,0.00011449,2]
[329137278,1718131838820,-387.0989336,0.00011449,2]
[329137279,1718131838833,-3809.32419854,0.00011449,2]
[329137280,1718131838846,-11831.27812418,0.00011449,2]
[329137281,1718131838880,-350.0,0.00011449,2]
[329137282,1718131838893,-5736.71418651,0.00011449,2]
[329137283,1718131838903,-763.2,0.00011449,2]
[329137284,1718131838914,-432.6,0.00011467,2]
[329137285,1718131838926,-167.51,0.00011483,2]
[329137286,1718131838944,-4123.2,0.00011739,2]
[329137287,1718131838963,-4342.6637133,0.000118,2]
[329137288,1718131838976,-4839.4572648,0.000118,2]
[329137289,1718131838989,-5446.77620846,0.000118,2]
[329137290,1718131839000,-424.40050855,0.00011873,2]
[329137291,1718131839012,-731.53,0.00011874,2]
[329137292,1718131839023,-810.22274111,0.00011914,2]
[329137293,1718131839071,-6086.64725889,0.00011914,2]
[329137294,1718131839082,-486.46,0.0001196,2]
[329137295,1718131839093,-486.46,0.00011993,2]
[329137296,1718131839105,-486.46,0.00012025,2]
[329137297,1718131839116,-486.46,0.00012058,2]
[329137298,1718131839127,-486.46,0.00012091,2]
[329137299,1718131839138,-486.46,0.00012124,2]
[329137300,1718131839149,-486.46,0.00012157,2]
[329137301,1718131839160,-486.46,0.00012189,2]
[329137302,1718131839171,-411.0,0.00012197,2]
[329137303,1718131839182,-486.46,0.00012222,2]
[329137304,1718131839192,-486.46,0.00012255,2]
[329137305,1718131839203,-161.63825425,0.00012287,2]
[329137306,1718131839213,-486.46,0.00012288,2]
[329137307,1718131839225,-486.46,0.0001232,2]
[329137308,1718131839236,-1000.0,0.00012332,2]
[329137310,1718131839246,-486.46,0.00012353,2]
[329137311,1718131839257,-486.46,0.00012386,2]
[329137313,1718131839267,-486.46,0.00012419,2]
[329137314,1718131839278,-486.46,0.00012452,2]
[329137315,1718131839291,-497.14461842,0.00012458,2]
[329137316,1718131839301,-150.0,0.00012467,2]
[329137317,1718131839311,-486.46,0.00012484,2]
[329137318,1718131839322,-486.46,0.00012517,2]
[329137319,1718131839332,-486.46,0.0001255,2]
[329137320,1718131839343,-486.46,0.00012583,2]
[329137322,1718131839354,-233.72586596,0.00012598,2]
[329137324,1718131839364,-161.56,0.00013063,2]
[329137326,1718131839375,-3750.35,0.00013063,2]
[329137328,1718131839385,-2763.8,0.00013063,2]
[329137330,1718131839396,-500.0,0.00013063,2]
[329137331,1718131839407,-161.56,0.00013073,2]
[329137332,1718131839417,-161.56,0.00013082,2]
[329137333,1718131839427,-161.56,0.00013091,2]
[329137334,1718131839438,-161.56,0.00013101,2]
[329137335,1718131839448,-161.56,0.0001311,2]
[329137337,1718131839458,-161.56,0.00013119,2]
[329137339,1718131839468,-364.20577069,0.00013128,2]
[329137341,1718131839479,-161.56,0.00013129,2]
[329137343,1718131839491,-167.51,0.00013397,2]
[329137346,1718131839502,-235.0,0.00013417,2]
[329137350,1718131839513,-1749.54,0.00013699,2]
[329137353,1718131839524,-2751.0,0.00013699,2]
[329137356,1718131839534,-200.0,0.00013699,2]
[329137357,1718131839545,-500.0,0.00013699,2]
[329137358,1718131839557,-579.54,0.00013699,2]
[329137360,1718131839567,-1235.15,0.00013699,2]
[329137362,1718131839578,-400.0,0.000138,5]
[329137364,1718131839588,-1000.0,0.00013873,2]
[329137366,1718131839599,-752.03196948,0.000139,2]
[329137368,1718131839610,-446.92903646,0.000139,2]
[329137370,1718131839621,-800.0,0.000139,5]
[329137372,1718131839632,-1838.32353125,0.000139,2]
[329137374,1718131839642,-1899.03337795,0.00013985,2]
[329137376,1718131839653,-152.01,0.0001399,2]
[329137378,1718131839663,-152.01,0.0001399,2]
[329137380,1718131839674,-152.01,0.0001399,2]
[329137382,1718131839685,-482.90087597,0.0001399,2]
[329137384,1718131839695,-441.49458652,0.00013998,2]
[329137386,1718131839706,-4180.67680472,0.00013998,2]
[329137388,1718131839717,-155.35592478,0.00013998,2]
[329137390,1718131839728,-158.26733888,0.00013998,2]
[329137392,1718131839738,-1144.98069744,0.00013998,2]
[329137394,1718131839749,-335.38617073,0.00013998,2]
[329137396,1718131839760,-186.30175631,0.00013998,2]
[329137398,1718131839772,-191.35915009,0.00013998,2]
[329137400,1718131839782,-155.0,0.00013998,2]
[329137402,1718131839793,-296.86150818,0.00013998,2]
[329137404,1718131839805,-599.27979208,0.00013998,2]
[329137406,1718131839816,-217.04888834,0.00013998,2]
[329137408,1718131839827,-426.21996155,0.00013998,2]
[329137410,1718131839838,-319.77542519,0.00013998,2]
[329137412,1718131839849,-327.44604499,0.00013998,2]
[329137414,1718131839860,-155.0,0.00013998,2]
[329137416,1718131839870,-9208.13411159,0.00013998,2]
[329137419,1718131839882,-674.06371433,0.00013998,2]
[329137421,1718131839894,-205.62852278,0.00013998,2]
[329137423,1718131839905,-532.81624174,0.00013998,2]
[329137425,1718131839916,-1639.02162316,0.00013998,2]
[329137427,1718131839927,-898.78473951,0.00013998,2]
[329137430,1718131839950,-163.09407214,0.00013998,2]
[329137433,1718131839968,-995.85672009,0.00013998,2]
[329137435,1718131839979,-217.02722813,0.00013998,2]
[329137438,1718131839990,-241.02418219,0.00013998,2]
[329137440,1718131840003,-185.52905548,0.00013998,2]
[329137442,1718131840013,-156.63790936,0.00013999,2]
[329137444,1718131840024,-5684.67242801,0.00013999,2]
[329137446,1718131840034,-32006.95428926,0.00014,2]
[329137449,1718131840051,-3466.7,0.00014,2]
[329137453,1718131840089,-637.7,0.00014,2]
[329137456,1718131840105,-12693.60089234,0.00014,2]
[329137458,1718131840118,-50742.81476043,0.00014,2]
[329137461,1718131840146,-0.00251599,0.00014,2]
[329137483,1718131840295,-711.6,0.00014,2]
[329137485,1718131840307,-436.578,0.00014,2]
[329137488,1718131840321,-157646.3738617,0.00014,2]
[329137490,1718131840334,-7506.78,0.00014,2]
[329137492,1718131840347,-2030.00005,0.00014,2]
[329137506,1718131840489,-489.7303052,0.00014,2]
[329137513,1718131840554,-71442.80804784,0.00014,2]
[329137587,1718131841500,-2788.21943686,0.00014,2]
[329137589,1718131841513,-24148.839795,0.00014,2]
[329137591,1718131841526,-6584.811088,0.00014,2]
[329137593,1718131841539,-18394.2051105,0.00014,2]
[329137805,1718131843719,-10591.72268182,0.00014,2]
[329137808,1718131843732,-13970.0,0.00014,2]
[329137810,1718131843745,-19297.94550114,0.00014,2]
[329137812,1718131843758,-971.8102777,0.00014,2]
[329137816,1718131843788,-441708.68978264,0.00014,2]
[329137818,1718131843800,-16289.06553561,0.00014,2]
[329137830,1718131843920,-110.7756675,0.00014,2]
[329137832,1718131843939,-346.0135875,0.00014,2]
[329137834,1718131843958,-2533.43496379,0.00014,2]
[329137836,1718131843977,-5123.68765908,0.00014,2]
[329137838,1718131843990,-7160.46370556,0.00014,2]
[329137842,1718131844025,-20192.46375984,0.00014,2]
[329137845,1718131844039,-4473.26614595,0.00014,2]
[329137847,1718131844055,-126453.89426423,0.00014,2]
[329137849,1718131844067,-358.20152403,0.00014,2]
[329137851,1718131844078,-4053.13635835,0.00014,2]
[329137853,1718131844088,-377.78463481,0.00014,2]
[329137855,1718131844099,-19655.56812232,0.00014,2]
[329137857,1718131844110,-731.53,0.00014138,2]
[329137859,1718131844121,-579.54,0.00014384,2]
[329137861,1718131844132,-172.85,0.00014458,2]
[329137863,1718131844143,-219.65,0.00014904,3]
[329137865,1718131844153,-152.01,0.0001499,2]
[329137867,1718131844165,-152.01,0.0001499,2]
[329137869,1718131844176,-200.0,0.00015,2]
[329137871,1718131844187,-190993.82509625,0.00015,2]
[329137876,1718131844233,-413.77459979,0.00015,2]
[329137878,1718131844246,-1781.1916331,0.00015,2]
[329137893,1718131844397,-1805.10980633,0.00015,2]
[329137899,1718131844451,-10090.07809529,0.00015,2]
[329137902,1718131844464,-1861.89006143,0.00015,2]
[329138254,1718131846661,-137452.47470682,0.00015,2]
[329138257,1718131846672,-300.0,0.00015068,2]
[329138260,1718131846684,-579.54,0.00015068,2]
[329138263,1718131846695,-1838.32353119,0.00015187,2]
[329138266,1718131846706,-167.51,0.00015311,2]
[329138270,1718131846717,-1000.0,0.00015414,2]
[329138274,1718131846727,-579.54,0.00015753,2]
[329138278,1718131846738,-2763.8,0.00015803,2]
[329138281,1718131846748,-167.17,0.00015831,2]
[329138284,1718131846760,-446.92903642,0.00015879,2]
[329138288,1718131846771,-219.65,0.0001589,4]
[329138291,1718131846782,-172.85,0.00015992,2]
[329138294,1718131846793,-221.28168513,0.00016336,2]
[329138297,1718131846804,-731.53,0.00016402,2]
[329138300,1718131846815,-300.0,0.00016438,2]
[329138303,1718131846827,-703.63,0.00016438,2]
[329138306,1718131846837,-579.54,0.00016438,2]
[329138309,1718131846847,-200.62290041,0.00016438,7]
[329138312,1718131846858,-455.31,0.00016438,2]
[329138314,1718131846867,-1838.32353119,0.00016475,2]
[329138317,1718131846879,-167.17,0.00016702,2]
[329138320,1718131846889,-166.23,0.00016838,2]
[329138323,1718131846900,-174.79,0.00016904,5]
[329138326,1718131846910,-1000.0,0.00016956,2]
[329138329,1718131846921,-167.51,0.00017225,2]
[329138332,1718131846931,-159.606,0.00017502,2]
[329138335,1718131846951,-172.85,0.00017526,2]
[329138338,1718131846968,-167.17,0.00017573,2]
[329138341,1718131846979,-159.606,0.00017581,2]
[329138344,1718131846989,-221.28168508,0.00017615,2]
[329138346,1718131846999,-159.606,0.00017661,2]
[329138348,1718131847011,-159.606,0.00017741,2]
[329138350,1718131847022,-1838.32353119,0.00017762,2]
[329138352,1718131847032,-159.606,0.00017822,2]
[329138354,1718131847044,-446.92903642,0.00017859,2]
[329138356,1718131847054,-5000.0,0.00018169,2]
[329138358,1718131847065,-151.00251543,0.00018444,2]
[329138361,1718131847078,-16.16748457,0.00018444,2]
[329138363,1718131847089,-1000.0,0.00018497,2]
[329138365,1718131847099,-88.0336015,0.00018543,2]
[329138369,1718131847131,-1565.0,0.00018543,2]
[329138371,1718131847146,-1110.7663985,0.00018543,2]
[329138373,1718131847157,-1611.36505028,0.00018603,2]
[329138378,1718131847200,-3889.63494972,0.00018603,2]
[329138380,1718131847211,-731.53,0.00018666,2]
[329138382,1718131847221,-221.28168508,0.00018894,2]
[329138384,1718131847234,-386.23296519,0.0001905,2]
[329138386,1718131847246,-1384.35305882,0.0001905,2]
[329138390,1718131847282,-67.73750718,0.0001905,2]
[329138392,1718131847293,-152.01,0.00019168,2]
[329138394,1718131847304,-455.94429013,0.00019178,2]
[329138395,1718131847318,-459.9770888,0.00019178,2]
[329138396,1718131847328,-500.0,0.00019178,2]
[329138397,1718131847338,-500.0,0.00019178,2]
[329138398,1718131847349,-234.97350179,0.00019178,2]
[329138399,1718131847360,-386.71358025,0.00019178,2]
[329138400,1718131847371,-500.0,0.00019178,2]
[329138402,1718131847382,-632.4545019,0.00019178,2]
[329138404,1718131847392,-417.52800382,0.00019178,2]
[329138406,1718131847403,-500.0,0.00019178,2]
[329138408,1718131847414,-500.0,0.00019178,2]
[329138410,1718131847424,-500.0,0.00019178,2]
[329138412,1718131847435,-500.0,0.00019178,2]
[329138414,1718131847446,-500.0,0.00019178,2]
[329138416,1718131847457,-1749.54,0.00019178,2]
[329138418,1718131847467,-785.0,0.000192,2]
[329138420,1718131847478,-2598.0,0.000193,2]
[329138422,1718131847489,-446.92903642,0.00019838,2]
[329138424,1718131847500,-342.50889762,0.0002,2]
[329138426,1718131847510,-351.84654694,0.0002,2]
[329138428,1718131847521,-155.0,0.0002,2]
[329138430,1718131847532,-155.0,0.0002,2]
[329138432,1718131847543,-504.73235724,0.0002,2]
[329138434,1718131847553,-364.45870332,0.0002,2]
[329138436,1718131847567,-364.45870332,0.0002,2]
[329138438,1718131847577,-226.7178388,0.000201,2]
[329138440,1718131847590,-221.28168508,0.00020173,2]
[329138442,1718131847600,-1838.32353119,0.00020337,2]
[329138444,1718131847611,-183.4345884,0.00020819,2]
[329138446,1718131847622,-500.0,0.000209,2]
[329138448,1718131847633,-1200.0,0.000209,7]
[329138450,1718131847643,-731.53,0.0002093,2]
[329138452,1718131847654,-221.28168508,0.00021451,2]
[329138454,1718131847665,-152.01,0.00021462,2]
[329138456,1718131847677,-482.90087597,0.00021462,2]
[329138458,1718131847687,-302.61221956,0.00021468,2]
[329138460,1718131847697,-225.56608327,0.0002147,2]
[329138462,1718131847708,-506.54758575,0.0002147,2]
[329138464,1718131847718,-1011.07818296,0.0002147,2]
[329138466,1718131847729,-673.20494959,0.0002147,2]
[329138468,1718131847738,-244.62743291,0.0002147,2]
[329138470,1718131847748,-156.32206566,0.0002147,2]
[329138472,1718131847758,-166.55508735,0.0002147,2]
[329138474,1718131847768,-2778.08020728,0.0002147,2]
[329138476,1718131847778,-243.66996537,0.0002147,2]
[329138478,1718131847788,-167.25995279,0.0002147,2]
[329138480,1718131847798,-277.46160255,0.0002147,2]
[329138482,1718131847809,-250.70636602,0.0002147,2]
[329138485,1718131847820,-162.55802593,0.0002147,2]
[329138488,1718131847831,-1389.37131481,0.0002147,2]
[329138491,1718131847841,-156.02499834,0.0002147,2]
[329138494,1718131847852,-6257.2531565,0.0002147,2]
[329138496,1718131847863,-429.4877479,0.0002147,2]
[329138498,1718131847874,-723.69746593,0.0002147,2]
[329138500,1718131847883,-263.44413224,0.0002147,2]
[329138502,1718131847894,-155.0,0.0002147,4]
[329138504,1718131847904,-164.74503866,0.00021471,2]
[329138506,1718131847913,-1277.45304415,0.00021471,2]
[329138508,1718131847925,-47277.28493994,0.00021472,2]
[329138554,1718131848407,-459.33142808,0.00021472,2]
[329138556,1718131848421,-7927.39910724,0.00021472,2]
[329138559,1718131848443,-284.02268952,0.00021472,2]
[329139164,1718132478702,-2337.22101959,0.00012362,2]
[329139165,1718132478726,-269.31785667,0.00012363,2]
[329139166,1718132478750,-161.63825425,0.00012363,2]
[329139167,1718132478774,-156.73863442,0.00012363,2]
[329139168,1718132478799,-1249.56334718,0.00012364,2]
[329139169,1718132478824,-176.54095284,0.00012364,2]
[329139170,1718132478849,-155.0,0.00012365,2]
[329139171,1718132478872,-155.0,0.00012365,2]
[329139172,1718132478897,-205.70870175,0.00012365,2]
[329139173,1718132478923,-300.0,0.00012365,2]
[329139174,1718132478951,-163.3366024,0.00012366,2]
[329139175,1718132478975,-158.39893901,0.00012366,2]
[329139176,1718132478999,-328.09103155,0.00012366,2]
[329139177,1718132479024,-155.0,0.00012366,2]
[329139178,1718132479050,-296.86150818,0.00012366,2]
[329139179,1718132479074,-9222.56534114,0.00012366,2]
[329139180,1718132479099,-786.5384728,0.00012367,2]
[329139181,1718132479124,-155.0,0.00012367,2]
[329139182,1718132479151,-4616.24077475,0.00012367,2]
[329139183,1718132479184,-2473.70129825,0.00012368,2]
[329139184,1718132479214,-156.3642,0.00012373,2]
[329139185,1718132479240,-1253.59956446,0.00012466,2]
[329139186,1718132479266,-150.0,0.0001247,2]
[329139187,1718132479292,-3369.49144835,0.00012473,2]
[329139188,1718132479323,-2369.42831983,0.00012478,2]
[329139189,1718132479348,-22239.32629279,0.00012479,2]
[329139190,1718132479373,-1639.02162316,0.00013475,2]
[329139191,1718132479398,-10979.27805314,0.00013589,2]
[329139192,1718132479424,-3022.37,0.0001359,2]
[329139193,1718132479448,-196.85,0.00013694,2]
[329139194,1718132479472,-499.99,0.00013695,2]
[329139195,1718132479496,-601.81776349,0.00013695,2]
[329139197,1718132530931,-715.98008293,0.0001236,2]
[329139198,1718132530957,-155.0,0.00012361,2]
[329139199,1718132530988,-1129.01991707,0.00012362,2]
[329139200,1718132543838,-364.20577069,0.0001236,2]
[329139201,1718132543919,-522.69878769,0.0001236,2]
[329139202,1718132543948,-90.41727124,0.00012362,2]
[329139203,1718132543975,-1022.67817038,0.00013695,2]